Workbook

Sheet Salary Schedule
A1: WORKFORCE INNOVATION AND OPPORTUNITY ACT
A2: GRANT BUDGET
A3: SALARY SCHEDULE – _____/____/_____ to ___/___/_____
C4: WIOA 2022-01- ADY-OSO
A5: NAME OF ORGANIZATION (GRANTEE PROPOSER):________________________________________
A7: Staff Position Title (do NOT list names of staff) | B7: Location /County | C7: Wages per Hour (A) | D7: Hours per week (B) | E7: Annualized Wages ((AxB)x52) | F7: Program Wages (C) | G7: Administration Wages (D)
A17: TOTAL
E18: Annualized Wages Total must equal PROGRAM WAGES + ADMINISTRATION WAGES (C) + (D)
A22: WORKFORCE INNOVATION AND OPPORTUNITY ACT
A23: GRANT BUDGET
A24: SALARY ALLOCATION SCHEDULE – _____/____/_____ to ___/___/_____
C25: WIOA 2022-01- ADY-OSO
A26: NAME OF ORGANIZATION (GRANTEE PROPOSER):________________________________________
A28: Staff Position Title (do NOT list names of staff) | B28: Location /County | C28: Annualized Wages | D28: Allocation of Annualized Wages to PROGRAM ADULT | E28: Allocation of Annualized Wages to PROGRAM DISLOCATED WORKER | F28: Allocation of Annualized Wages to PROGRAM YOUTH | G28: Allocation of Annualized Wages to AMINISTRATION ADULT | H28: Allocation of Annualized Wages to ADMINISTRATION DISLOCATED WORKER | I28: Allocation of Annualized Wages to ADMINISTRATION YOUTH
A38: TOTAL

Sheet Adult+DW Participant Cost sched
A1: WORKFORCE INNOVATION AND OPPORTUNITY ACT
A2: WIOA 2022-01- ADY-OSO
A3: PARTICIPANT COST SCHEDULE (ADULT + DW)
A4: _____/____/_____ to ___/___/_____
A6: NAME OF ORGANIZATION (GRANTEE PROPOSER):________________________________________
A8: Total Participant Costs Adult | C8: (a)
A9: Total Participant Costs Dislocated Worker | C9: (b)
A10: Grand Total Participant Costs (Adult + Dislocated Worker) | C10: (a) + (b) = C
A12: Total Program Costs Adult | C12: (d)
A13: Total Program Costs Dislocated Worker | C13: (e)
A14: Grand Total Program Costs (Adult + Dislocated Worker) | C14: (d) + (e) = F
A16: Participant Cost Rate (Grand Total Participant Costs/Grand Total Program Costs (C/F)) | B16: _______%

Sheet ADULT
A1: WORKFORCE INNOVATION AND OPPORTUNITY ACT
A2: ADULT GRANT BUDGET
C3: _____/____/_____ to ___/___/_____
C4: WIOA 2022-01- ADY-OSO
A5: NAME OF ORGANIZATION (GRANTEE PROPOSER):________________________________________
A7: Adult (CDFA 17.258) | B7: Budget | C7: % Applicable | D7: Calculation Formula
A8: ADMINISTRATION
A9: Salaries
A10: Fringe Benefits | C10: __________ | D10: x ______________
A11: Indirect Cost | C11: __________ | D11: x ______________
A12: Operating Expenses
A13: Profit | C13: __________ | D13: x ______________
A14: Administration Sub-Total | B14: =SUM(B9:B13) -> 0
A15: PROGRAM
A16: Salaries
A17: Fringe Benefits | C17: __________ | D17: x ______________
A18: Indirect Cost | C18: __________ | D18: x ______________
A19: Operating Expenses
A20: Profit | C20: __________ | D20: x ______________
A21: Total Non-Participant Costs | B21: =B16+B17+B18+B19+B20 -> 0 | C21: __________ | D21: of TOTAL PROGRAM
A23: Participant Costs
A24: Assessment | C24: # ______ @ $________/PER
A25: High School Equivalency | C25: # ______ @ $________/PER
A26: Occ. Skills Training | C26: # ______ @ $________/PER
A28: Supportive Services | C28: # ______ @ $________/PER
A29: Transportation
A30: Childcare
A31: Books, Supplies, Uniforms
A32: Other
C33: # ______ @ $________/PER
A34: Total Participant Costs (a) | B34: =SUM(B23:B33) -> 0 | C34: ________% | D34: of TOTAL PROGRAM
A35: Program Sub-Total (d) | B35: =B34+B21 -> 0
A36: Total Grant Cost | B36: =B35+B14 -> 0

Sheet Dislocated Worker
A1: WORKFORCE INNOVATION AND OPPORTUNITY ACT
A2: DISLOCATED WORKER GRANT BUDGET
C3: _____/____/_____ to ___/___/_____
C4: WIOA 2022-01- ADY-OSO
A5: NAME OF ORGANIZATION (GRANTEE PROPOSER):________________________________________
A7: Dislocated Worker (CDFA 17.278) | B7: Budget | C7: % Applicable | D7: Calculation Formula
A8: ADMINISTRATION
A9: Salaries
A10: Fringe Benefits | C10: __________ | D10: x ______________
A11: Indirect Cost | C11: __________ | D11: x ______________
A12: Operating Expenses
A13: Profit | C13: __________ | D13: x ______________
A14: Administration Sub-Total | B14: =SUM(B9:B13) -> 0
A15: PROGRAM
A16: Salaries
A17: Fringe Benefits | C17: __________ | D17: x ______________
A18: Indirect Cost | C18: __________ | D18: x ______________
A19: Operating Expenses
A20: Profit | C20: __________ | D20: x ______________
A21: Total Non-Participant Costs | B21: =SUM(B16:B20) -> 0 | C21: __________ | D21: of TOTAL PROGRAM
A23: Participant Costs
A24: Assessment | C24: # ______ @ $________/PER
A25: High School Equivalency | C25: # ______ @ $________/PER
A26: Occ. Skills Training | C26: # ______ @ $________/PER
A28: Supportive Services | C28: # ______ @ $________/PER
A29: Transportation
A30: Childcare
A31: Books, Supplies, Uniforms
A32: Other
C33: # ______ @ $________/PER
A34: Total Participant Costs (b) | B34: =SUM(B23:B33) -> 0 | C34: ________% | D34: of TOTAL PROGRAM
A35: Program Sub-Total (e) | B35: =B34+B21 -> 0
A36: Total Grant Cost | B36: =B35+B14 -> 0

Sheet Youth Staffing WBL schedule
A1: WORKFORCE INNOVATION AND OPPORTUNITY ACT
A3: YOUTH STAFFING WORK-BASED LEARNING COST SCHEDULE
D4: _____/____/_____ to ___/___/_____
C5: WIOA 2022-01- ADY-OSO
A6: NAME OF ORGANIZATION (GRANTEE PROPOSER):________________________________________
A8: PROGRAM | B8: Of Staff Working to Develop and Manage Youth Work-Based Learning (A) | C8: Balance of Youth Staff cost (B) | D8: TOTAL COST (A+B, MUST MATCH TOTAL YOUTH PROGRAM BUDGET)
A9: Salaries*
A10: Fringe Benefits*
A11: TOTALS
A13: * $40,000 is maximum allowable expenditure for Work Based Learning Front-line Youth Staff Salary & Fringe costs
A15: As stated in TEGL No. 23-14, program expenditures on the work experience program element can be more than just wages paid to youth in work experience. Allowable expenditures beyond wages can include staff time spent identifying potential work experience opportunities, staff time working with employers to develop the work experience, staff time spent working with employers to ensure a successful work experience, staff time spent evaluating the work experience, participant work experience orientation sessions, classroom training or the required academic education component directly related to the work experience, and orientations for employers.

Sheet Youth
A1: WORKFORCE INNOVATION AND OPPORTUNITY ACT
A2: YOUTH GRANT BUDGET
A3: _____/____/_____ to ___/___/_____
A4: WIOA 2022-01- ADY-OSO
A5: NAME OF ORGANIZATION (GRANTEE PROPOSER):________________________________________
A7: Youth (CDFA 17.259) | B7: Budget | C7: % Applicable | D7: Calculation Formula
A8: ADMINISTRATION
A9: Salaries
A10: Fringe Benefits | C10: __________ | D10: x ______________
A11: Indirect Cost | C11: __________ | D11: x ______________
A12: Operating Expenses
A13: Profit | C13: __________ | D13: x ______________
A14: Administration Sub-Total | B14: =SUM(B9:B13) -> 0
A15: PROGRAM
A16: Salaries* | B16: ='Youth Staffing WBL schedule'!D9 -> 0
A17: Fringe Benefits* | B17: ='Youth Staffing WBL schedule'!D10 -> 0 | C17: __________ | D17: x ______________
A18: Indirect Cost | C18: __________ | D18: x ______________
A19: Operating Expenses
A20: Profit | C20: __________ | D20: x ______________
A21: Total Non-Participant Costs | B21: =B16+B17+B18+B19+B20 -> 0 | C21: __________ | D21: of TOTAL PROGRAM
A23: DETAIL - Participant Costs
A24: Assessment | C24: # ______ @ $________/PER
A25: High School Equivalency | C25: # ______ @ $________/PER
A26: Occ. Skills Training | C26: # ______ @ $________/PER
A27: Youth Incentives | C27: # ______ @ $________/PER
A28: Supportive Services | C28: # ______ @ $________/PER
A29: Transportation
A30: Childcare
A31: Books, Supplies, Uniforms
A32: Other
A33: Youth Work Experience | C33: # ______ @ $________/PER
A34: Total Participant Costs | B34: =B26+B33+B28 -> 0 | C34: __________% | D34: of TOTAL PROGRAM
A35: Program Sub-Total | B35: =B21+B34 -> 0
A36: Total Grant Cost | B36: =B35+B14 -> 0
A37: * $40,000 is maximum allowable expenditure for Work Based Learning Front-line Youth Staff Salary & Fringe costs
A39: Only a Total of Support Services is need for the Budget.
A40: HOWEVER, the successful proposer will be required to track and report expenditures
A41: by the detailed type of support services

Sheet GRAND TOTAL
A1: WORKFORCE INNOVATION AND OPPORTUNITY ACT
A3: GRAND TOTAL - ALL GRANTS (ADULT + DISLOCATED WORKER + YOUTH)
D4: _____/____/_____ to ___/___/_____
B5: WIOA 2022-01- ADY-OSO
A6: NAME OF ORGANIZATION (GRANTEE PROPOSER):________________________________________
A8: Total Non-Participant Costs | B8: Budget
A9: ADMINISTRATION
A10: Salaries
A11: Fringe Benefits
A12: Indirect Cost
A13: Operating Expenses
A14: Profit
A15: Administration Sub-Total | B15: =SUM(B10:B14) -> 0
A16: PROGRAM
A17: Salaries*
A18: Fringe Benefits*
A19: Indirect Cost
A20: Operating Expenses
A21: Profit
A22: Total Non-Participant Costs | B22: =B17+B18+B19+B20+B21 -> 0
A24: DETAIL - Participant Costs
A25: Assessment
A26: High School Equivalency
A27: Occ. Skills Training
A28: Youth Incentives
A29: Supportive Services
A30: Transportation
A31: Childcare
A32: Books, Supplies, Uniforms
A33: Other
A34: Youth Work Experience
A35: Total Participant Costs | B35: =B27+B34+B29 -> 0
A36: Program Sub-Total | B36: =B22+B35 -> 0
A37: Total Grant Cost | B37: =B36+B15 -> 0

Sheet example completed form
A1: WORKFORCE INNOVATION AND OPPORTUNITY ACT
A2: YOUTH GRANT BUDGET
B3: 06/30/2023 - 06/30/2024
B4: WIOA 2022-01- ADY-OSO
A5: NAME OF ORGANIZATION (GRANTEE PROPOSER): XYZ, INC.
A17: Youth (CDFA 17.259) | B17: Budget | C17: % Applicable | D17: Calculation Formula
A18: ADMINISTRATION
A19: Salaries | B19: 8,500.00
A20: Fringe Benefits | B20: =B19*0.2 -> 1,700.00 | C20: =B20/B19 -> 0.20 | D20: x Salaries
A21: Indirect Cost | B21: =(B19+B20+B22)*0.1 -> 1,020.00 | C21: 0.10 | D21: x (Salaries + Fringe + Operating)
A22: Operating Expenses | B22: 0
A23: Profit | B23: =(B19+B20)*0.08 -> 816.00 | C23: 0.08 | D23: x (Salaries + Fringe)
A24: Administration Sub-Total | B24: =SUM(B19:B23) -> 12,036.00 | C24: =B24/B45 -> 0.04
A25: PROGRAM
A26: Salaries* | B26: 90,000.00
A27: Fringe Benefits* | B27: 25,500.00 | C27: =B27/B26 -> 0.28 | D27: x Salaries
A28: Indirect Cost | B28: =(B26+B27+B29)*0.1 -> 12,660.00 | C28: 0.10 | D28: x (Salaries + Fringe + Operating)
A29: Operating Expenses | B29: 11,100.00
A30: Profit | B30: =(B26+B27)*0.08 -> 9,240.00 | C30: 0.08 | D30: x (Salaries + Fringe)
A31: Total Non-Participant Costs | B31: =B26+B27+B28+B29+B30 -> 148,500.00 | C31: =B31/B44 -> 0.58 | D31: of total program
A32: Participant Costs
A33: Assessment
A34: High School Equivalency
A35: Occ. Skills Training | B35: 40,000.00 | C35: 8 @ 5000
A36: Youth Incentives
A37: Supportive Services | B37: 9,464.00 | C37: 8 @ 1183
A38: Transportation
A39: Childcare
A40: Books, Supplies, Uniforms
A41: Other
A42: Youth Work Experience | B42: 60,000.00
A43: Total Participant Costs | B43: =B35+B42+B37 -> 109,464.00 | C43: =B43/B44 -> 42.4% | D43: of total program
A44: Program Sub-Total | B44: =B31+B43 -> 257,964.00
A45: Total Grant Cost | B45: =B44+B24 -> 270,000.00
